bitfinex-derivatives/quotes_SOLF0:USTF0_20260121
["timestamp","ask_amount","ask_price","bid_price","bid_amount"]
[1769013020256,0.05924306,128.93,128.89,3.42563316]
[1769013021150,0.05924306,128.93,128.87,3.42563316]
[1769013021752,5.6275487,128.97,128.87,3.42563316]
[1769013022855,2.57072817,128.92,128.84,3.42563316]
[1769013023062,2.57072817,128.9,128.84,3.42563316]
[1769013023560,2.57072817,128.9,128.81,3.42563316]
[1769013023955,2.57072817,128.9,128.82,10.41693316]
[1769013024261,2.57072817,128.9,128.82,3.42563316]
[1769013025960,2.57072817,128.9,128.83,6.991]
[1769013027453,2.57072817,128.9,128.83,10.41663316]
[1769013027650,402.1015,128.94,128.81,6.9917]
[1769013027651,2.57072817,128.88,128.81,6.9917]
[1769013027857,2.57072817,128.86,128.8,3.42563316]
[1769013028352,2.57072817,128.82,128.75,10.42073316]
[1769013028657,2.57072817,128.82,128.75,3.42563316]
[1769013028861,2.57072817,128.86,128.77,3.42563316]
[1769013029068,2.57072817,128.86,128.79,3.42563316]
[1769013029365,6.9887,128.88,128.79,3.42563316]
[1769013029366,2.57072817,128.88,128.79,3.42563316]
[1769013030061,2.57072817,128.88,128.82,0.05310029]
[1769013030662,2.57072817,128.88,128.82,3.47873345]
[1769013031256,2.57072817,128.88,128.83,3.42563316]
[1769013032057,2.57072817,128.9,128.83,10.41663316]
[1769013033959,2.57072817,128.9,128.85,3.42563316]
[1769013034262,108.6286,128.98,128.85,3.42563316]
[1769013034263,2.57072817,128.92,128.85,3.42563316]
[1769013034662,2.57072817,128.92,128.85,10.41553316]
[1769013035860,2.57072817,128.93,128.87,3.42563316]
[1769013036065,2.57072817,128.94,128.87,3.42563316]
[1769013038868,2.57072817,128.94,128.87,10.41453316]
[1769013041561,2.57072817,128.94,128.87,3.42563316]
[1769013041768,2.57072817,128.92,128.84,3.42563316]
[1769013042873,2.57072817,128.92,128.85,6.9899]
[1769013043469,2.57072817,128.92,128.84,10.41613316]
[1769013046572,2.57072817,128.92,128.85,10.4550463]
[1769013048274,9.55702817,128.92,128.85,3.4651463]
[1769013049875,6.9863,128.92,128.85,3.4651463]
[1769013055281,6.9857,128.94,128.86,3.4651463]
[1769013056395,6.9857,128.94,128.87,3.4651463]
[1769013056897,6.9857,128.94,128.87,10.4540463]
[1769013058094,6.9857,128.94,128.87,3.4651463]
[1769013059189,6.9857,128.94,128.87,10.4539463]
[1769013060293,6.9858,128.93,128.87,3.4651463]
[1769013060496,9.5559337,128.93,128.84,3.15881552]
[1769013060994,9.5559337,128.93,128.83,2.5701337]
[1769013060995,6.9858,128.93,128.86,3.15881552]
[1769013061195,2.5701337,128.95,128.86,3.15881552]
[1769013061489,2.5701337,128.95,128.86,10.14831552]
[1769013061682,2.5701337,128.93,128.84,3.15881552]
[1769013062092,2.5701337,128.91,128.84,3.15881552]
[1769013062393,2.5701337,128.89,128.81,3.15881552]
[1769013062895,108.6794,128.92,128.81,3.15881552]
[1769013062896,2.5701337,128.87,128.81,3.15881552]
[1769013063187,2.5701337,128.87,128.78,3.15881552]
[1769013063895,9.5592337,128.87,128.79,6.9931]
[1769013064092,9.5592337,128.87,128.8,3.15881552]
[1769013064896,6.9891,128.87,128.8,3.15881552]
[1769013065289,6.9896,128.86,128.8,3.15881552]
[1769013065497,2.5701337,128.86,128.8,3.15881552]
[1769013065707,2.5701337,128.84,128.76,3.15881552]
[1769013067192,2.5701337,128.84,128.77,6.9942]
[1769013067399,2.5701337,128.84,128.78,3.15881552]
[1769013070602,9.5608337,128.84,128.78,3.15881552]
[1769013071898,2.5701337,128.84,128.78,3.15881552]
[1769013072199,2.5701337,128.86,128.79,3.15881552]
[1769013073103,2.5701337,128.86,128.79,10.15201552]
[1769013073304,2.5701337,128.87,128.8,3.15881552]
[1769013073804,2.5701337,128.89,128.81,3.15881552]
[1769013074603,2.5701337,128.87,128.81,3.15881552]
[1769013074989,2.5701337,128.87,128.81,10.15101552]
[1769013076704,2.5701337,128.87,128.82,6.9916]
[1769013077006,2.5701337,128.87,128.82,10.21640589]
[1769013077700,2.5701337,128.85,128.8,6.9924]
[1769013077908,2.5701337,128.85,128.77,3.22480589]
[1769013078108,2.5701337,128.83,128.77,3.22480589]
[1769013078303,2.5701337,128.83,128.78,6.9938]
[1769013078504,2.5701337,128.83,128.77,3.22480589]
[1769013079303,2.5701337,128.83,128.77,10.21920589]
[1769013080802,2.5701337,128.83,128.78,3.22480589]
[1769013081914,2.5701337,128.83,128.77,6.9944]
[1769013082407,2.5701337,128.83,128.76,3.22480589]
[1769013084004,2.5701337,128.83,128.76,10.21970589]
[1769013084405,2.5701337,128.83,128.77,3.22480589]
[1769013085307,2.5701337,128.83,128.78,3.22480589]
[1769013088211,6.9906,128.84,128.78,3.22480589]
[1769013088525,2.5701337,128.84,128.78,3.22480589]
[1769013089219,2.5701337,128.82,128.75,10.21980589]
[1769013089514,2.5701337,128.82,128.76,3.22480589]
[1769013089912,2.5701337,128.82,128.74,3.22480589]
[1769013090230,2.5701337,128.8,128.74,3.22480589]
[1769013090509,2.5701337,128.78,128.71,3.22480589]
[1769013090711,2.5701337,128.76,128.69,3.22480589]
[1769013090915,108.7807,128.8,128.7,3.22480589]
[1769013091107,2.5701337,128.77,128.7,3.22480589]
[1769013092719,2.5701337,128.77,128.71,10.22230589]
[1769013094518,2.5701337,128.77,128.73,0.05664157]
[1769013095919,9.5645337,128.77,128.73,0.05664157]
[1769013096308,2.5701337,128.77,128.73,0.05664157]
[1769013096512,9.5647337,128.77,128.73,0.05664157]
[1769013096811,2.5701337,128.75,128.7,3.22480589]
[1769013097220,2.5701337,128.75,128.68,3.22480589]
[1769013097420,2.5701337,128.75,128.68,10.22410589]
[1769013098321,0.05790596,128.73,128.68,10.22410589]
[1769013098505,0.05790596,128.73,128.68,3.22480589]
[1769013098916,2.62803966,128.73,128.66,3.22480589]
[1769013099514,2.5701337,128.73,128.66,10.22510589]
[1769013099710,2.5701337,128.73,128.67,3.22480589]
[1769013099919,0.05723829,128.71,128.67,3.22480589]
[1769013100425,9.5656337,128.75,128.68,10.22400589]
[1769013101221,9.5656337,128.75,128.68,3.22480589]
[1769013102719,9.5656337,128.75,128.68,10.22410589]
[1769013102919,9.5656337,128.75,128.68,3.22480589]
[1769013103219,2.5701337,128.73,128.68,3.22480589]
[1769013104822,2.5701337,128.75,128.69,3.22480589]
[1769013105726,2.5701337,128.75,128.71,0.04997598]
[1769013105909,2.5701337,128.78,128.71,3.28671111]
[1769013106110,2.5701337,128.79,128.71,3.28671111]
[1769013106518,2.5701337,128.79,128.71,3.23673513]
[1769013106922,108.7653,128.82,128.69,6.9982]
[1769013106923,2.5701337,128.77,128.69,6.9982]
[1769013107111,2.5701337,128.77,128.69,3.23673513]
[1769013107822,2.5701337,128.75,128.69,3.23673513]
[1769013108030,2.5701337,128.75,128.67,10.23603513]
[1769013108521,9.5661337,128.75,128.67,10.23603513]
[1769013109314,9.5661337,128.75,128.68,3.23673513]
[1769013110623,108.788,128.79,128.69,3.23673513]
[1769013110924,2.5701337,128.77,128.69,3.23673513]
[1769013111222,6.9955,128.75,128.69,3.23673513]
[1769013111622,6.9961,128.74,128.67,3.23673513]
[1769013111826,2.5701337,128.75,128.67,3.23673513]
[1769013112012,2.5701337,128.73,128.67,3.23673513]
[1769013112618,6.9974,128.72,128.67,3.23673513]
[1769013114628,2.5701337,128.75,128.67,3.23673513]
[1769013115323,6.9966,128.73,128.67,3.23673513]
[1769013115926,2.5701337,128.71,128.65,3.23673513]
[1769013116726,9.5678337,128.71,128.65,3.23673513]
[1769013118928,6.9977,128.71,128.65,3.23673513]
[1769013119229,9.57640248,128.72,128.65,3.23673513]
[1769013120431,9.57640248,128.72,128.66,3.2438483]
[1769013120935,2.57930248,128.74,128.67,0.05109995]
[1769013121133,2.57930248,128.74,128.67,3.29494825]
[1769013121332,2.57930248,128.77,128.67,3.29494825]
[1769013121632,2.57930248,128.79,128.69,3.2438483]
[1769013122331,6.9939,128.78,128.7,10.2420483]
[1769013122927,9.57320248,128.78,128.71,3.2438483]
[1769013123823,2.57930248,128.76,128.68,3.2438483]
[1769013124933,2.57930248,128.76,128.69,10.2425483]
[1769013126228,2.57930248,128.76,128.68,3.2438483]
[1769013127527,6.9957,128.75,128.68,3.2438483]
[1769013127724,2.57930248,128.74,128.65,5.82315078]
[1769013128029,2.57930248,128.74,128.66,3.2438483]
[1769013128333,2.57930248,128.76,128.68,3.2438483]
[1769013129333,6.9962,128.74,128.68,3.2438483]
[1769013129530,2.57930248,128.74,128.65,12.82375078]
[1769013129834,2.57930248,128.74,128.65,3.2438483]
[1769013129835,2.57930248,128.72,128.65,3.2438483]
[1769013130435,6.9983,128.7,128.65,3.2438483]
[1769013130833,108.8292,128.74,128.66,3.2438483]
[1769013130834,2.57930248,128.74,128.66,3.2438483]
[1769013131223,6.9955,128.74,128.67,3.2438483]
[1769013131733,6.9955,128.74,128.68,3.2438483]
[1769013132034,2.57930248,128.78,128.68,3.2438483]
[1769013132333,2.57930248,128.78,128.68,10.2423483]
[1769013132521,2.57930248,128.78,128.69,3.2438483]
[1769013132726,6.9944,128.76,128.69,3.2438483]
[1769013135036,9.63566811,128.78,128.66,3.2438483]
[1769013135037,2.57930248,128.74,128.66,3.2438483]
[1769013135638,9.57460248,128.74,128.66,10.2434483]
[1769013135846,2.57930248,128.68,128.63,3.18885299]
[1769013136141,2.57930248,128.69,128.63,3.18885299]
[1769013136724,6.9975,128.71,128.63,3.18885299]
[1769013136928,293.86,128.74,128.63,3.18885299]
[1769013137136,300.91636563,128.74,128.63,3.18885299]
[1769013137338,293.86,128.74,128.63,3.18885299]
[1769013137931,6.997,128.71,128.64,7.0007]
[1769013138528,6.997,128.71,128.63,10.19015299]
[1769013138839,6.9978,128.7,128.63,3.18885299]
[1769013139036,115.16686214,128.72,128.63,3.18885299]
[1769013140734,6.9986,128.68,128.61,10.19075299]
[1769013140939,2.77368721,128.66,128.56,23.32]
[1769013141133,2.77368721,128.64,128.52,109.0025]
[1769013141330,2.77368721,128.63,128.5,109.0193]
[1769013141532,9.77628721,128.61,128.5,109.0193]
[1769013141737,111.67768721,128.64,128.51,109.0106]
[1769013141935,2.77368721,128.63,128.51,109.0106]
[1769013142540,2.77368721,128.62,128.5,110.37301689]
[1769013142936,2.77368721,128.62,128.51,3.18885299]
[1769013143337,2.77368721,128.65,128.54,3.18885299]
[1769013143941,9.77458721,128.64,128.57,3.18885299]
[1769013144244,2.77368721,128.64,128.53,3.18885299]
[1769013144638,2.77368721,128.62,128.53,3.18885299]
[1769013144843,2.77368721,128.61,128.53,3.18885299]
[1769013145948,2.77368721,128.61,128.53,10.19545299]
[1769013146554,2.77368721,128.61,128.54,3.18885299]
[1769013146848,9.77618721,128.61,128.54,3.18885299]
[1769013147049,2.77368721,128.64,128.54,3.18885299]
[1769013147244,2.77368721,128.61,128.51,3.18885299]
[1769013147641,6.33316214,128.63,128.51,3.18885299]
[1769013147846,9.10684935,128.63,128.51,3.18885299]
[1769013148154,7.0025,128.61,128.53,10.19535299]
[1769013148839,16.10844935,128.63,128.54,3.18885299]
[1769013149050,9.10684935,128.63,128.54,3.18885299]
[1769013149446,7.0025,128.61,128.54,3.18885299]
[1769013149645,2.77368721,128.62,128.54,3.18885299]
[1769013149850,2.77368721,128.62,128.54,10.19495299]
[1769013150342,9.77558721,128.62,128.54,3.18885299]
[1769013150549,2.77368721,128.62,128.54,3.18885299]
[1769013150756,108.8553,128.7,128.56,3.18885299]
[1769013150757,6.33316214,128.66,128.56,3.18885299]
[1769013150954,206.8915055,128.68,128.56,3.18885299]
[1769013151146,6.9992,128.67,128.59,3.18885299]
[1769013151651,2.77368721,128.7,128.59,3.18885299]
[1769013152041,6.9987,128.68,128.6,10.19155299]
[1769013152648,2.77368721,128.7,128.61,10.19115299]
[1769013152854,2.77368721,128.7,128.61,3.18885299]
[1769013153055,6.9989,128.68,128.61,3.18885299]
[1769013153244,2.77368721,128.69,128.59,7.0031]
[1769013153446,2.77368721,128.69,128.59,10.19195299]
[1769013154752,9.77218721,128.69,128.59,10.19195299]
[1769013154955,2.77368721,128.67,128.57,7.0042]
[1769013155450,2.77368721,128.67,128.56,3.18885299]
[1769013155451,7.0008,128.64,128.56,3.18885299]
[1769013155653,2.77368721,128.67,128.57,3.18885299]
[1769013156060,7.0003,128.65,128.57,3.18885299]
[1769013156450,117.96884935,128.69,128.59,3.18885299]
[1769013156655,9.10684935,128.69,128.59,3.18885299]
[1769013157357,2.77368721,128.68,128.59,3.18885299]
[1769013158451,2.77368721,128.68,128.59,10.19185299]
[1769013158853,9.57882264,128.69,128.61,3.18885299]
[1769013159053,12.35250985,128.69,128.61,3.18885299]
[1769013159347,2.77368721,128.69,128.61,10.19105299]
[1769013159553,2.77368721,128.69,128.62,3.18885299]
[1769013159847,2.58042264,128.7,128.62,3.18885299]
[1769013160048,12.35170985,128.7,128.62,3.18885299]
[1769013161062,5.35410985,128.68,128.59,10.19185299]
[1769013163158,6.9992,128.67,128.59,10.19185299]
[1769013163544,111.61868721,128.71,128.6,3.18885299]
[1769013163747,2.58042264,128.68,128.61,3.18885299]
[1769013164555,6.9991,128.67,128.61,3.18885299]
[1769013165160,6.9997,128.66,128.58,10.19235299]
[1769013165458,6.9997,128.66,128.59,3.27692773]
[1769013166662,2.77368721,128.67,128.6,3.27692773]
[1769013168162,2.77368721,128.67,128.59,7.0034]
[1769013168163,2.77368721,128.67,128.57,10.28112773]
[1769013168362,2.77368721,128.67,128.58,3.27692773]
[1769013168655,2.77940299,128.65,128.54,3.27692773]
[1769013170158,7.0014,128.63,128.57,3.27692773]
[1769013170354,2.77940299,128.65,128.57,3.27692773]
[1769013170556,2.77940299,128.63,128.54,3.27692773]
[1769013171150,9.78180299,128.61,128.54,3.27692773]
[1769013171355,2.77940299,128.6,128.51,3.27692773]
[1769013171663,7.0036,128.59,128.51,3.27692773]
[1769013173165,9.78300299,128.59,128.51,3.27692773]
[1769013174355,2.77940299,128.58,128.51,3.27692773]
[1769013174559,2.77940299,128.57,128.49,3.27692773]
[1769013175156,2.77940299,128.57,128.5,10.28512773]
[1769013175651,2.77940299,128.57,128.5,3.27692773]
[1769013175856,2.77940299,128.6,128.5,3.27692773]
[1769013177065,2.77940299,128.59,128.5,10.28482773]
[1769013178166,2.77940299,128.59,128.51,3.27692773]
[1769013179168,2.77852176,128.62,128.52,3.15517796]
[1769013179564,111.66312176,128.66,128.56,3.15517796]
[1769013179868,2.77852176,128.65,128.53,3.15517796]
[1769013180258,9.78062176,128.62,128.53,3.15517796]
[1769013180459,2.77852176,128.6,128.5,3.15517796]
[1769013180965,6.34629258,128.62,128.52,3.15517796]
[1769013181163,2.77852176,128.63,128.52,3.15517796]
[1769013181864,7.0022,128.62,128.54,7.0061]
[1769013182169,2.77852176,128.63,128.55,3.15517796]
[1769013183468,2.77852176,128.62,128.53,7.0063]
[1769013184168,2.77852176,128.62,128.53,10.16147796]
[1769013184670,2.77852176,128.62,128.54,7.0062]
[1769013184872,115.24179258,128.65,128.54,3.15517796]
[1769013184873,9.12481434,128.65,128.54,3.15517796]
[1769013185165,2.77852176,128.65,128.56,3.15517796]
[1769013185570,6.9995,128.67,128.59,10.15857796]
[1769013185760,9.12481434,128.68,128.6,3.15517796]
[1769013185964,2.77852176,128.68,128.6,3.15517796]
[1769013186166,9.77722176,128.68,128.6,3.15517796]
[1769013186370,2.77852176,128.68,128.6,3.15517796]
[1769013187366,9.77792176,128.67,128.6,3.15517796]
[1769013187575,9.77792176,128.67,128.57,3.15517796]
[1769013187973,2.77852176,128.62,128.54,3.15517796]
[1769013188875,115.24099258,128.65,128.55,3.15517796]
[1769013188876,7.0011,128.64,128.55,3.15517796]
[1769013189572,2.77852176,128.65,128.56,3.15517796]
[1769013189978,7.0,128.66,128.58,3.15517796]
[1769013190775,9.77852176,128.66,128.58,3.15517796]
[1769013190971,2.77852176,128.65,128.54,3.15517796]
[1769013191183,2.77852176,128.63,128.54,3.15517796]
[1769013191380,2.77852176,128.62,128.54,3.15517796]
[1769013191581,9.78152176,128.6,128.51,3.15517796]
[1769013192981,9.78152176,128.6,128.52,7.007]
[1769013193183,2.77852176,128.6,128.51,3.15517796]
[1769013193376,7.0038,128.59,128.51,3.15517796]
[1769013195085,7.0041,128.58,128.51,3.15517796]
[1769013195281,2.77852176,128.61,128.5,3.15517796]
[1769013195977,7.0032,128.6,128.52,10.3702506]
[1769013196493,7.0023,128.62,128.54,3.3630506]
[1769013196683,6.34629258,128.63,128.54,3.3630506]
[1769013196876,2.77740784,128.64,128.54,3.3630506]
[1769013197182,9.12370042,128.63,128.51,3.3630506]
[1769013197388,2.77740784,128.62,128.51,3.3630506]
[1769013197978,2.77740784,128.6,128.51,3.3630506]
[1769013198379,9.12370042,128.63,128.51,3.3630506]
[1769013198583,2.77740784,128.62,128.51,3.3630506]
[1769013198785,9.77930784,128.62,128.54,7.0061]
[1769013199484,2.77740784,128.62,128.55,7.0055]
[1769013200480,2.77740784,128.62,128.54,3.3630506]
[1769013200989,2.77740784,128.62,128.55,7.0056]
[1769013201490,2.77740784,128.62,128.54,3.3630506]
[1769013202299,2.77740784,128.62,128.57,0.05212799]
[1769013202586,0.05823583,128.59,128.52,3.3630506]
[1769013204385,0.05823583,128.59,128.52,10.3702506]
[1769013204586,0.05823583,128.59,128.52,3.3630506]
[1769013205579,7.06173583,128.59,128.52,3.3630506]
[1769013206191,2.77740784,128.58,128.49,3.3630506]
[1769013206689,2.77740784,128.55,128.46,3.3630506]
[1769013207086,2.83096425,128.55,128.46,3.3630506]
[1769013207289,2.77740784,128.53,128.42,3.3630506]
[1769013207993,0.05308482,128.49,128.42,3.3630506]
[1769013208985,0.05308482,128.49,128.43,7.012]
[1769013209181,0.05308482,128.49,128.43,10.3750506]
[1769013209392,0.05308482,128.49,128.43,3.3630506]
[1769013209891,2.77740784,128.53,128.44,3.3630506]
[1769013210087,410.24127326,128.58,128.44,3.3630506]
[1769013210088,2.77740784,128.55,128.44,3.3630506]
[1769013210287,7.0069,128.53,128.45,7.011]
[1769013210689,2.77740784,128.53,128.44,3.3630506]
[1769013211085,7.0081,128.51,128.44,3.3630506]
[1769013211292,9.78550784,128.51,128.44,3.3630506]
[1769013211795,2.77740784,128.51,128.46,0.05495463]
[1769013212598,9.78560784,128.51,128.46,0.05495463]
[1769013212802,9.78560784,128.51,128.41,10.3760506]
[1769013212993,0.05747514,128.5,128.41,3.3630506]
[1769013213386,9.78560784,128.51,128.41,3.3630506]
[1769013213897,9.78560784,128.51,128.43,10.3750506]
[1769013214196,0.05070704,128.47,128.43,3.3630506]
[1769013214398,2.77740784,128.51,128.44,7.0116]
[1769013214698,6.34629258,128.53,128.43,3.3630506]
[1769013214888,9.12370042,128.53,128.43,3.3630506]
[1769013215093,16.13050042,128.53,128.45,7.011]
[1769013216305,9.78470784,128.52,128.43,3.3630506]
[1769013217085,2.77740784,128.57,128.46,3.3630506]
[1769013217494,2.77740784,128.57,128.47,3.3630506]
[1769013217789,2.77740784,128.6,128.51,3.3630506]
[1769013218395,7.0041,128.58,128.51,3.3630506]
[1769013218796,7.0041,128.58,128.47,3.3630506]
[1769013218797,2.77740784,128.58,128.47,3.3630506]
[1769013219099,2.77740784,128.57,128.47,3.3630506]
[1769013219499,2.77740784,128.56,128.47,3.3630506]
[1769013219694,7.007,128.53,128.45,7.011]
[1769013219889,7.007,128.53,128.45,10.3740506]
[1769013220587,7.0074,128.52,128.45,3.3630506]
[1769013222500,7.0081,128.51,128.45,3.3630506]
[1769013222900,7.0075,128.52,128.46,3.3630506]
[1769013223105,118.09780042,128.56,128.46,3.3630506]
[1769013223303,2.77740784,128.55,128.46,3.3630506]
[1769013223608,9.78360784,128.55,128.46,10.3735506]
[1769013223805,108.9642,128.57,128.46,3.3630506]
[1769013224005,2.77740784,128.55,128.46,3.3630506]
[1769013224510,7.0069,128.53,128.46,10.3735506]
[1769013224806,7.0069,128.53,128.47,3.3630506]
[1769013224995,7.0069,128.53,128.46,7.0105]
[1769013225403,7.0069,128.53,128.46,10.3735506]
[1769013227300,9.78340784,128.55,128.46,10.3735506]
[1769013227712,7.0064,128.54,128.46,10.3735506]
[1769013228210,2.77740784,128.55,128.48,3.28774901]
[1769013228414,7.0063,128.54,128.45,3.28774901]
[1769013228596,7.0063,128.54,128.46,10.29824901]
[1769013228802,7.0063,128.54,128.47,3.28774901]
[1769013229212,9.78310784,128.55,128.47,10.29764901]
[1769013230003,2.77892128,128.52,128.45,7.0109]
[1769013230406,2.77892128,128.52,128.43,3.28774901]
[1769013230605,2.77892128,128.51,128.4,3.28774901]
[1769013230805,2.77892128,128.54,128.43,3.28774901]
[1769013231210,2.77892128,128.51,128.41,3.28774901]
[1769013232013,9.78692128,128.51,128.43,7.0121]
[1769013232209,2.77892128,128.5,128.41,3.28774901]
[1769013232800,2.77892128,128.5,128.43,7.0122]
[1769013233512,2.77892128,128.5,128.44,7.0115]
[1769013234209,2.77892128,128.5,128.42,10.30014901]
[1769013235108,2.77892128,128.5,128.43,7.0122]
[1769013235314,2.77892128,128.52,128.44,3.28774901]
[1769013235714,2.77892128,128.58,128.45,3.28774901]
[1769013235914,2.77892128,128.58,128.46,3.28774901]
[1769013236412,2.77892128,128.56,128.47,3.28774901]
[1769013236605,2.77892128,128.56,128.43,109.0767]
[1769013236606,2.77892128,128.56,128.44,3.28774901]
[1769013236809,2.77892128,128.55,128.44,3.28774901]
[1769013237203,2.77892128,128.54,128.44,3.28774901]
[1769013237810,2.77892128,128.54,128.42,109.0823]
[1769013237811,9.78522128,128.54,128.45,10.29874901]
[1769013238633,9.78672787,128.53,128.45,3.28774901]
[1769013240510,2.77982787,128.53,128.43,7.0121]
[1769013240813,2.77982787,128.53,128.43,10.27053858]
[1769013241003,2.77982787,128.49,128.4,3.25843858]
[1769013241720,9.78872787,128.49,128.41,10.27173858]
[1769013242604,2.77982787,128.49,128.41,3.25843858]
[1769013243918,7.01,128.47,128.41,3.25843858]
[1769013245304,2.77982787,128.47,128.38,3.25843858]
[1769013245714,2.77982787,128.45,128.34,3.25843858]
[1769013246511,7.0123,128.43,128.37,3.25843858]
[1769013246820,2.77982787,128.45,128.37,3.25843858]
[1769013247316,111.83022787,128.47,128.37,3.25843858]
[1769013248309,730.4478,128.52,128.35,109.1451]
[1769013248310,109.0289,128.49,128.38,3.25843858]
[1769013248510,2.77982787,128.48,128.38,3.25843858]
[1769013248819,2.77982787,128.47,128.36,3.25843858]
[1769013249119,7.0117,128.44,128.37,7.015]
[1769013249322,2.77982787,128.45,128.36,3.25843858]
[1769013250721,2.77982787,128.45,128.36,10.27433858]
[1769013251924,2.77982787,128.45,128.37,7.0155]
[1769013252118,2.77982787,128.45,128.37,10.27393858]
[1769013252920,9.13338935,128.48,128.39,3.25843858]
[1769013253116,2.77982787,128.48,128.39,3.25843858]
[1769013253711,9.13338935,128.51,128.39,3.25843858]
[1769013253913,2.77982787,128.51,128.4,3.25843858]
[1769013254113,2.77982787,128.51,128.42,3.31591902]
[1769013254315,2.77982787,128.51,128.43,7.0122]
[1769013254512,2.77982787,128.51,128.43,3.25843858]
[1769013254713,2.77982787,128.5,128.4,3.25843858]
[1769013254918,2.77982787,128.5,128.4,10.27193858]
[1769013255319,2.77982787,128.5,128.4,3.25843858]
[1769013256222,2.77982787,128.5,128.41,7.0133]
[1769013256921,2.77982787,128.5,128.41,10.45758305]
[1769013257318,13.36166148,128.51,128.39,7.014]
[1769013257319,2.78038896,128.49,128.39,7.014]
[1769013257820,2.78038896,128.47,128.38,3.44428305]
[1769013258615,2.78038896,128.46,128.38,3.44428305]
[1769013259420,0.05111766,128.43,128.38,3.44428305]
[1769013259818,0.05111766,128.43,128.41,0.05631703]
[1769013261118,9.13395044,128.48,128.41,0.05631703]
[1769013261423,2.78038896,128.48,128.41,0.05631703]
[1769013263122,9.79048896,128.47,128.41,0.05631703]
[1769013263624,9.79048896,128.47,128.4,3.44428305]
[1769013263825,9.79098896,128.46,128.37,10.45968305]
[1769013264021,9.79098896,128.46,128.37,3.44428305]
[1769013264926,9.79098896,128.46,128.38,3.44428305]
[1769013267027,2.58975713,128.45,128.38,3.44428305]
[1769013267416,9.60115713,128.45,128.38,3.44428305]
[1769013267918,2.72597141,128.44,128.35,10.46038305]
[1769013268318,12.32752854,128.44,128.36,3.44428305]
[1769013268726,12.32752854,128.44,128.37,10.45968305]
[1769013268926,2.58975713,128.44,128.37,10.45968305]
[1769013269126,2.58975713,128.44,128.38,3.44428305]
[1769013269319,2.58975713,128.46,128.38,3.44428305]
[1769013269717,2.58975713,128.42,128.35,10.46048305]
[1769013269920,2.58975713,128.42,128.35,3.44428305]
[1769013270431,2.58975713,128.4,128.32,3.44428305]
[1769013271021,9.60365713,128.4,128.33,3.44428305]
[1769013271222,2.58975713,128.38,128.33,3.44428305]
[1769013271426,2.58975713,128.4,128.33,3.44428305]
[1769013271634,5.31572854,128.4,128.33,3.44428305]
[1769013272328,12.33002854,128.4,128.33,3.44428305]
[1769013272526,2.58975713,128.4,128.33,3.44428305]
[1769013272930,9.60365713,128.4,128.33,3.44428305]
[1769013274522,2.72597141,128.39,128.3,6.03404018]
[1769013274723,109.0905,128.42,128.3,6.03404018]
[1769013274724,5.31572854,128.38,128.3,10.46358305]
[1769013274927,2.72597141,128.37,128.3,10.46358305]
[1769013276033,9.74167141,128.37,128.3,3.44428305]
[1769013276221,5.31572854,128.39,128.3,3.44428305]
[1769013276627,2.72597141,128.34,128.23,406.2424]
[1769013276929,2.72597141,128.34,128.2,443.0]
[1769013276930,2.72597141,128.32,128.24,3.44428305]
[1769013277528,6.37258866,128.35,128.26,7.0213]
[1769013277724,9.09856007,128.35,128.26,3.44428305]
[1769013277928,2.72597141,128.34,128.23,3.44428305]
[1769013278125,2.72597141,128.32,128.23,3.44428305]
[1769013278324,2.72597141,128.32,128.2,3.44428305]
[1769013278325,2.72597141,128.3,128.2,3.44428305]
[1769013278837,2.72597141,128.33,128.22,3.44428305]
[1769013279335,2.72597141,128.28,128.17,3.44428305]
[1769013280028,2.72597141,128.26,128.17,3.44428305]
[1769013280230,9.09856007,128.29,128.18,3.44428305]
[1769013280432,2.72597141,128.28,128.19,3.44428305]
[1769013280939,2.72597141,128.26,128.19,3.44428305]
[1769013281123,2.72597141,128.26,128.16,3.44428305]
[1769013281429,2.72597141,128.26,128.15,1.35730723]
[1769013281430,2.72597141,128.23,128.15,1.35730723]
[1769013281630,2.72597141,128.23,128.13,3.44428305]
[1769013281821,2.72597141,128.23,128.14,3.44428305]
[1769013283439,2.72597141,128.21,128.11,3.44428305]
[1769013283937,116.2828,128.22,128.11,3.44428305]
[1769013283938,7.024,128.22,128.11,3.44428305]
[1769013284141,2.72597141,128.23,128.12,3.44428305]
[1769013284328,2.72597141,128.23,128.13,3.44428305]
[1769013284531,2.72597141,128.25,128.15,3.44428305]
[1769013284733,2.72597141,128.26,128.15,3.44428305]
[1769013285229,2.72597141,128.25,128.16,3.44428305]
[1769013285630,111.96804653,128.24,128.16,3.44428305]
[1769013285833,111.96804653,128.24,128.13,3.23590732]
[1769013285834,2.72604653,128.22,128.13,3.23590732]
[1769013286228,2.72604653,128.21,128.1,3.23590732]
[1769013286837,2.72604653,128.2,128.11,10.26540732]
[1769013287035,2.72604653,128.2,128.12,3.23590732]
[1769013287539,9.75174653,128.19,128.1,3.23590732]
[1769013288237,9.75224653,128.18,128.09,3.23590732]
[1769013288443,2.72604653,128.18,128.09,3.23590732]